[Event "Titled Tuesday Blitz March 15 Late 2022"]
[White "Kostiukov, Alexandr"]
[Black "Ardila, Oscar Humberto"]
[WhiteFideId "14108100"]
[BlackFideId "4404742"]
[WhiteElo "2202"]
[BlackElo "1966"]
[Result "0-1"]
[Round "06"]
[TimeControl "180+1"]
[Date "2022.03.16"]
[WhiteClock "0:01:08"]
[BlackClock "0:02:06"]

1. e4 {[%clk 0:02:59]}  e5 {[%clk 0:02:59]} 2. Nf3 {[%clk 0:02:58]}  Nf6 {[%clk 0:02:58]} 3. Nxe5 {[%clk 0:02:54]}  d6 {[%clk 0:02:58]} 4. Nxf7 {[%clk 0:02:53]}  Kxf7 {[%clk 0:02:58]} 5. Bc4+ {[%clk 0:02:52]}  Be6 {[%clk 0:02:58]} 6. Bxe6+ {[%clk 0:02:52]}  Kxe6 {[%clk 0:02:59]} 7. O-O {[%clk 0:02:52]}  c5 {[%clk 0:02:57]} 8. d4 {[%clk 0:02:51]}  cxd4 {[%clk 0:02:57]} 9. Qxd4 {[%clk 0:02:51]}  Nc6 {[%clk 0:02:57]} 10. Qc4+ {[%clk 0:02:49]}  Kd7 {[%clk 0:02:57]} 11. Nc3 {[%clk 0:02:46]}  Qe7 {[%clk 0:02:54]} 12. Bg5 {[%clk 0:02:45]}  Qe5 {[%clk 0:02:48]} 13. Rad1 {[%clk 0:02:38]}  Qxg5 {[%clk 0:02:45]} 14. Qf7+ {[%clk 0:02:34]}  Be7 {[%clk 0:02:43]} 15. Nd5 {[%clk 0:02:28]}  Nxd5 {[%clk 0:02:41]} 16. Rxd5 {[%clk 0:02:25]}  Qf6 {[%clk 0:02:40]} 17. Qh5 {[%clk 0:02:21]}  g6 {[%clk 0:02:37]} 18. Qd1 {[%clk 0:02:15]}  Kc7 {[%clk 0:02:35]} 19. c4 {[%clk 0:02:12]}  Rad8 {[%clk 0:02:34]} 20. Qd2 {[%clk 0:01:52]}  Rhf8 {[%clk 0:02:31]} 21. Rd1 {[%clk 0:01:51]}  Qf4 {[%clk 0:02:29]} 22. Qe1 {[%clk 0:01:45]}  Kb8 {[%clk 0:02:22]} 23. a3 {[%clk 0:01:43]}  Ne5 {[%clk 0:02:19]} 24. b3 {[%clk 0:01:37]}  Qg4 {[%clk 0:02:18]} 25. Kh1 {[%clk 0:01:30]}  Qh4 {[%clk 0:02:10]} 26. R1d2 {[%clk 0:01:20]}  Ng4 {[%clk 0:02:08]} 27. h3 {[%clk 0:01:17]}  Nxf2+ {[%clk 0:02:06]} 28. Rxf2 {[%clk 0:01:08]}  Qxf2 {[%clk 0:02:06]} 0-1


[Site "https://www.chess.com"]

[Event "Titled Tuesday Blitz March 15 Late 2022"]
[White "Kovanova, Baira"]
[Black "Araujo Filho, Luiz Antonio Coel"]
[WhiteFideId "4164083"]
[BlackFideId "2130661"]
[WhiteElo "2190"]
[BlackElo "2221"]
[Result "1-0"]
[Round "06"]
[TimeControl "180+1"]
[Date "2022.03.16"]
[WhiteClock "0:02:00"]
[BlackClock "0:00:02"]

1. e4 {[%clk 0:02:59]}  c6 {[%clk 0:03:00]} 2. d4 {[%clk 0:02:58]}  d5 {[%clk 0:03:00]} 3. e5 {[%clk 0:02:58]}  Bf5 {[%clk 0:03:00]} 4. Nf3 {[%clk 0:02:58]}  e6 {[%clk 0:03:00]} 5. Nbd2 {[%clk 0:02:58]}  Ne7 {[%clk 0:02:59]} 6. Nb3 {[%clk 0:02:58]}  Nd7 {[%clk 0:02:59]} 7. Be2 {[%clk 0:02:58]}  Qc7 {[%clk 0:02:57]} 8. O-O {[%clk 0:02:58]}  c5 {[%clk 0:02:58]} 9. c3 {[%clk 0:02:58]}  Nc6 {[%clk 0:02:58]} 10. Be3 {[%clk 0:02:58]}  b6 {[%clk 0:02:54]} 11. Nh4 {[%clk 0:02:58]}  Bg6 {[%clk 0:02:48]} 12. f4 {[%clk 0:02:58]}  Be7 {[%clk 0:02:48]} 13. Nxg6 {[%clk 0:02:55]}  hxg6 {[%clk 0:02:48]} 14. h3 {[%clk 0:02:55]}  c4 {[%clk 0:01:58]} 15. Nd2 {[%clk 0:02:54]}  b5 {[%clk 0:01:50]} 16. a4 {[%clk 0:02:54]}  b4 {[%clk 0:01:50]} 17. cxb4 {[%clk 0:02:44]}  Nxb4 {[%clk 0:01:45]} 18. b3 {[%clk 0:02:43]}  c3 {[%clk 0:00:52]} 19. Nf3 {[%clk 0:02:42]}  Rc8 {[%clk 0:00:46]} 20. Rc1 {[%clk 0:02:40]}  c2 {[%clk 0:00:39]} 21. Qd2 {[%clk 0:02:38]}  Na2 {[%clk 0:00:36]} 22. Ra1 {[%clk 0:02:20]}  c1=Q {[%clk 0:00:35]} 23. Raxc1 {[%clk 0:02:16]}  Nxc1 {[%clk 0:00:35]} 24. Rxc1 {[%clk 0:02:16]}  Qxc1+ {[%clk 0:00:35]} 25. Qxc1 {[%clk 0:02:16]}  Rxc1+ {[%clk 0:00:36]} 26. Bxc1 {[%clk 0:02:16]}  O-O {[%clk 0:00:33]} 27. Bb5 {[%clk 0:02:15]}  Nb8 {[%clk 0:00:28]} 28. Bd2 {[%clk 0:02:14]}  Rc8 {[%clk 0:00:28]} 29. Kf2 {[%clk 0:02:14]}  Rc2 {[%clk 0:00:22]} 30. Ke2 {[%clk 0:02:10]}  Rb2 {[%clk 0:00:22]} 31. Kd3 {[%clk 0:02:09]}  Rxb3+ {[%clk 0:00:22]} 32. Kc2 {[%clk 0:02:09]}  Ra3 {[%clk 0:00:19]} 33. Bc1 {[%clk 0:02:08]}  Ra2+ {[%clk 0:00:17]} 34. Bb2 {[%clk 0:02:08]}  Ba3 {[%clk 0:00:17]} 35. Kb3 {[%clk 0:02:08]}  Rxb2+ {[%clk 0:00:17]} 36. Kxa3 {[%clk 0:02:09]}  Rxg2 {[%clk 0:00:18]} 37. Kb4 {[%clk 0:02:09]}  Rf2 {[%clk 0:00:14]} 38. Ne1 {[%clk 0:02:07]}  Rxf4 {[%clk 0:00:14]} 39. Kc5 {[%clk 0:02:07]}  Rf1 {[%clk 0:00:10]} 40. Bxf1 {[%clk 0:02:07]}  Kf8 {[%clk 0:00:03]} 41. Kd6 {[%clk 0:02:07]}  Ke8 {[%clk 0:00:03]} 42. Nd3 {[%clk 0:02:05]}  Kd8 {[%clk 0:00:03]} 43. Nc5 {[%clk 0:02:06]}  g5 {[%clk 0:00:02]} 44. a5 {[%clk 0:02:00]} 1-0


[Site "https://www.chess.com"]

[Event "Titled Tuesday Blitz March 15 Late 2022"]
[White "Krasteva, Beloslava"]
[Black "Mohammadian, Mohammad"]
[WhiteFideId "2922029"]
[BlackFideId "12566055"]
[WhiteElo "1689"]
[BlackElo "1544"]
[Result "1-0"]
[Round "06"]
[TimeControl "180+1"]
[Date "2022.03.16"]
[WhiteClock "0:00:12"]
[BlackClock "0:00:20"]

1. c3 {[%clk 0:02:51]}  Nf6 {[%clk 0:02:59]} 2. d4 {[%clk 0:02:51]}  d5 {[%clk 0:02:57]} 3. Bf4 {[%clk 0:02:49]}  g6 {[%clk 0:02:54]} 4. Nf3 {[%clk 0:02:47]}  Bg7 {[%clk 0:02:54]} 5. e3 {[%clk 0:02:47]}  O-O {[%clk 0:02:54]} 6. Bd3 {[%clk 0:02:46]}  c6 {[%clk 0:02:52]} 7. O-O {[%clk 0:02:46]}  Nbd7 {[%clk 0:02:52]} 8. Nbd2 {[%clk 0:02:45]}  Nh5 {[%clk 0:02:50]} 9. Ne5 {[%clk 0:02:21]}  Nxf4 {[%clk 0:02:49]} 10. exf4 {[%clk 0:02:21]}  Nxe5 {[%clk 0:02:49]} 11. fxe5 {[%clk 0:02:20]}  e6 {[%clk 0:02:44]} 12. f4 {[%clk 0:02:17]}  a6 {[%clk 0:02:41]} 13. Rf3 {[%clk 0:02:08]}  b5 {[%clk 0:02:40]} 14. Nf1 {[%clk 0:02:07]}  a5 {[%clk 0:02:33]} 15. Ne3 {[%clk 0:02:05]}  Ba6 {[%clk 0:02:32]} 16. g4 {[%clk 0:02:01]}  b4 {[%clk 0:02:33]} 17. Bc2 {[%clk 0:01:59]}  Qh4 {[%clk 0:02:22]} 18. Kh1 {[%clk 0:01:50]}  f5 {[%clk 0:02:17]} 19. exf6 {[%clk 0:01:40]}  Qxf6 {[%clk 0:02:14]} 20. g5 {[%clk 0:01:26]}  Qe7 {[%clk 0:02:12]} 21. Ng4 {[%clk 0:01:25]}  c5 {[%clk 0:02:04]} 22. Qd2 {[%clk 0:01:20]}  cxd4 {[%clk 0:02:04]} 23. cxd4 {[%clk 0:01:20]}  Rac8 {[%clk 0:02:00]} 24. Re1 {[%clk 0:01:18]}  Qd6 {[%clk 0:01:51]} 25. Ne5 {[%clk 0:01:04]}  Bxe5 {[%clk 0:01:50]} 26. Rxe5 {[%clk 0:01:03]}  Rc7 {[%clk 0:01:43]} 27. Bd1 {[%clk 0:00:56]}  Rfc8 {[%clk 0:01:42]} 28. Rfe3 {[%clk 0:00:54]}  Rc6 {[%clk 0:01:34]} 29. Kg2 {[%clk 0:00:43]}  Re8 {[%clk 0:01:23]} 30. Ba4 {[%clk 0:00:40]}  Rcc8 {[%clk 0:01:09]} 31. Bxe8 {[%clk 0:00:40]}  Rxe8 {[%clk 0:01:09]} 32. Kg3 {[%clk 0:00:40]}  Bc4 {[%clk 0:01:03]} 33. a3 {[%clk 0:00:36]}  bxa3 {[%clk 0:01:01]} 34. Rxa3 {[%clk 0:00:35]}  Qa6 {[%clk 0:00:59]} 35. Rxa5 {[%clk 0:00:33]}  Qb6 {[%clk 0:00:56]} 36. b4 {[%clk 0:00:31]}  Rc8 {[%clk 0:00:52]} 37. Rc5 {[%clk 0:00:30]}  Ra8 {[%clk 0:00:48]} 38. Ra5 {[%clk 0:00:27]}  Rc8 {[%clk 0:00:48]} 39. h4 {[%clk 0:00:17]}  Re8 {[%clk 0:00:34]} 40. h5 {[%clk 0:00:17]}  gxh5 {[%clk 0:00:33]} 41. f5 {[%clk 0:00:16]}  exf5 {[%clk 0:00:31]} 42. Rxe8+ {[%clk 0:00:15]}  Kg7 {[%clk 0:00:30]} 43. Re7+ {[%clk 0:00:15]}  Kg8 {[%clk 0:00:28]} 44. Ra8+ {[%clk 0:00:12]}  Qd8 {[%clk 0:00:20]} 45. Rxd8# {[%clk 0:00:12]} 1-0


[Site "https://www.chess.com"]

[Event "Titled Tuesday Blitz March 15 Late 2022"]
[White "Lock, Gavin R"]
[Black "Petre, Nad-Titus"]
[WhiteFideId "408646"]
[BlackFideId "1204165"]
[WhiteElo "2104"]
[BlackElo "2354"]
[Result "0-1"]
[Round "06"]
[TimeControl "180+1"]
[Date "2022.03.16"]
[WhiteClock "0:00:03"]
[BlackClock "0:00:23"]

1. d4 {[%clk 0:03:00]}  Nf6 {[%clk 0:02:59]} 2. Nf3 {[%clk 0:03:01]}  b6 {[%clk 0:02:58]} 3. Bg5 {[%clk 0:02:58]}  Bb7 {[%clk 0:02:56]} 4. Nbd2 {[%clk 0:02:54]}  g6 {[%clk 0:02:53]} 5. Bxf6 {[%clk 0:02:50]}  exf6 {[%clk 0:02:54]} 6. e4 {[%clk 0:02:50]}  d5 {[%clk 0:02:51]} 7. Bb5+ {[%clk 0:02:41]}  c6 {[%clk 0:02:45]} 8. Bd3 {[%clk 0:02:38]}  Be7 {[%clk 0:02:41]} 9. O-O {[%clk 0:02:35]}  O-O {[%clk 0:02:42]} 10. Re1 {[%clk 0:02:35]}  Na6 {[%clk 0:02:37]} 11. c3 {[%clk 0:02:29]}  Nc7 {[%clk 0:02:37]} 12. a4 {[%clk 0:02:22]}  a5 {[%clk 0:02:28]} 13. exd5 {[%clk 0:02:13]}  Nxd5 {[%clk 0:02:28]} 14. Ne4 {[%clk 0:02:05]}  f5 {[%clk 0:02:28]} 15. Ned2 {[%clk 0:01:57]}  Bd6 {[%clk 0:02:27]} 16. Nc4 {[%clk 0:01:56]}  Bc7 {[%clk 0:02:27]} 17. Nce5 {[%clk 0:01:50]}  f6 {[%clk 0:02:26]} 18. Nc4 {[%clk 0:01:47]}  Qd7 {[%clk 0:02:25]} 19. Ne3 {[%clk 0:01:21]}  Nf4 {[%clk 0:02:18]} 20. Bc4+ {[%clk 0:01:21]}  Kg7 {[%clk 0:02:18]} 21. Qb3 {[%clk 0:00:57]}  Rfe8 {[%clk 0:02:02]} 22. Rad1 {[%clk 0:00:57]}  Rad8 {[%clk 0:01:48]} 23. Bf1 {[%clk 0:00:51]}  Qf7 {[%clk 0:01:41]} 24. Qxf7+ {[%clk 0:00:46]}  Kxf7 {[%clk 0:01:42]} 25. g3 {[%clk 0:00:45]}  c5 {[%clk 0:01:23]} 26. d5 {[%clk 0:00:36]}  Nh5 {[%clk 0:01:06]} 27. Bb5 {[%clk 0:00:30]}  Re7 {[%clk 0:00:55]} 28. Bc4 {[%clk 0:00:22]}  Bd6 {[%clk 0:00:52]} 29. Nh4 {[%clk 0:00:16]}  f4 {[%clk 0:00:46]} 30. Ng4 {[%clk 0:00:06]}  Rxe1+ {[%clk 0:00:40]} 31. Rxe1 {[%clk 0:00:06]}  Bc8 {[%clk 0:00:41]} 32. h3 {[%clk 0:00:04]}  fxg3 {[%clk 0:00:38]} 33. fxg3 {[%clk 0:00:04]}  Nxg3 {[%clk 0:00:23]} 34. Kh2 {[%clk 0:00:03]} 0-1


[Site "https://www.chess.com"]

[Event "Titled Tuesday Blitz March 15 Late 2022"]
[White "Martin Barcelo, Carles"]
[Black "Zhurbinsky, David"]
[WhiteFideId "24561444"]
[BlackFideId "2072904"]
[WhiteElo "1875"]
[BlackElo "2593"]
[Result "1-0"]
[Round "06"]
[TimeControl "180+1"]
[Date "2022.03.16"]
[WhiteClock "0:00:16"]
[BlackClock "0:00:09"]

1. e4 {[%clk 0:03:00]}  e5 {[%clk 0:02:58]} 2. Nc3 {[%clk 0:02:58]}  Nf6 {[%clk 0:02:59]} 3. g3 {[%clk 0:02:56]}  c6 {[%clk 0:02:59]} 4. Bg2 {[%clk 0:02:56]}  d5 {[%clk 0:02:59]} 5. d3 {[%clk 0:02:50]}  Bb4 {[%clk 0:02:57]} 6. Bd2 {[%clk 0:02:49]}  Be6 {[%clk 0:02:56]} 7. a3 {[%clk 0:02:48]}  Ba5 {[%clk 0:02:54]} 8. Nge2 {[%clk 0:02:46]}  Nbd7 {[%clk 0:02:52]} 9. O-O {[%clk 0:02:45]}  Qe7 {[%clk 0:02:42]} 10. exd5 {[%clk 0:02:30]}  cxd5 {[%clk 0:02:43]} 11. Nxd5 {[%clk 0:02:29]}  Bxd5 {[%clk 0:02:41]} 12. Bxa5 {[%clk 0:02:29]}  Bxg2 {[%clk 0:02:39]} 13. Kxg2 {[%clk 0:02:30]}  Qc5 {[%clk 0:02:39]} 14. Bb4 {[%clk 0:02:25]}  Qc6+ {[%clk 0:02:37]} 15. f3 {[%clk 0:02:22]}  h5 {[%clk 0:02:37]} 16. Qd2 {[%clk 0:02:09]}  h4 {[%clk 0:02:33]} 17. Qc3 {[%clk 0:02:09]}  Qb6 {[%clk 0:02:25]} 18. Ba5 {[%clk 0:01:52]}  Qe3 {[%clk 0:02:23]} 19. Qd2 {[%clk 0:01:50]}  Qc5 {[%clk 0:02:19]} 20. Bb4 {[%clk 0:01:44]}  Qb6 {[%clk 0:02:17]} 21. a4 {[%clk 0:01:38]}  a5 {[%clk 0:02:15]} 22. Ba3 {[%clk 0:01:38]}  Nd5 {[%clk 0:02:15]} 23. d4 {[%clk 0:01:26]}  O-O-O {[%clk 0:01:55]} 24. Nc3 {[%clk 0:01:23]}  N7f6 {[%clk 0:01:49]} 25. Bc5 {[%clk 0:01:03]}  Qc6 {[%clk 0:01:29]} 26. Nb5 {[%clk 0:01:02]}  Nf4+ {[%clk 0:01:07]} 27. gxf4 {[%clk 0:00:54]}  Qxc5 {[%clk 0:01:07]} 28. Qxa5 {[%clk 0:00:33]}  Qxc2+ {[%clk 0:00:47]} 29. Kh1 {[%clk 0:00:32]}  Kd7 {[%clk 0:00:41]} 30. Rac1 {[%clk 0:00:31]}  Qd3 {[%clk 0:00:32]} 31. Qc7+ {[%clk 0:00:17]}  Ke8 {[%clk 0:00:32]} 32. Nd6+ {[%clk 0:00:15]}  Rxd6 {[%clk 0:00:28]} 33. Qxd6 {[%clk 0:00:16]}  Qf5 {[%clk 0:00:11]} 34. Rc7 {[%clk 0:00:16]}  Nd7 {[%clk 0:00:09]} 35. Rc8# {[%clk 0:00:16]} 1-0


[Site "https://www.chess.com"]

[Event "Titled Tuesday Blitz March 15 Late 2022"]
[White "Martin Duque, Jesus"]
[Black "Al-Tarboush, Ward"]
[WhiteFideId "2208954"]
[BlackFideId "7601450"]
[WhiteElo "2243"]
[BlackElo "2276"]
[Result "1/2-1/2"]
[Round "06"]
[TimeControl "180+1"]
[Date "2022.03.16"]
[WhiteClock "0:00:17"]
[BlackClock "0:00:06"]

1. Nf3 {[%clk 0:02:59]}  d5 {[%clk 0:02:47]} 2. b3 {[%clk 0:02:59]}  Nf6 {[%clk 0:02:41]} 3. Bb2 {[%clk 0:02:58]}  c6 {[%clk 0:02:40]} 4. g3 {[%clk 0:02:56]}  Bf5 {[%clk 0:02:40]} 5. Bg2 {[%clk 0:02:56]}  e6 {[%clk 0:02:40]} 6. d3 {[%clk 0:02:57]}  Nbd7 {[%clk 0:02:39]} 7. Nbd2 {[%clk 0:02:57]}  Be7 {[%clk 0:02:37]} 8. O-O {[%clk 0:02:56]}  O-O {[%clk 0:02:38]} 9. Re1 {[%clk 0:02:56]}  a5 {[%clk 0:02:24]} 10. a4 {[%clk 0:02:54]}  Bb4 {[%clk 0:02:20]} 11. e4 {[%clk 0:02:50]}  dxe4 {[%clk 0:02:18]} 12. dxe4 {[%clk 0:02:50]}  Bg4 {[%clk 0:02:17]} 13. Qe2 {[%clk 0:02:43]}  Re8 {[%clk 0:01:50]} 14. Red1 {[%clk 0:02:41]}  Qe7 {[%clk 0:01:49]} 15. Nc4 {[%clk 0:02:40]}  e5 {[%clk 0:01:39]} 16. h3 {[%clk 0:02:38]}  Bxf3 {[%clk 0:01:38]} 17. Bxf3 {[%clk 0:02:37]}  b5 {[%clk 0:01:37]} 18. Ne3 {[%clk 0:02:34]}  Qc5 {[%clk 0:01:34]} 19. Bg4 {[%clk 0:02:26]}  Nf8 {[%clk 0:01:30]} 20. Nf5 {[%clk 0:02:20]}  Bc3 {[%clk 0:01:16]} 21. Bxc3 {[%clk 0:02:17]}  Qxc3 {[%clk 0:01:17]} 22. axb5 {[%clk 0:02:07]}  cxb5 {[%clk 0:01:17]} 23. Nd6 {[%clk 0:02:07]}  Red8 {[%clk 0:01:13]} 24. Nxb5 {[%clk 0:02:07]}  Qb4 {[%clk 0:01:12]} 25. Rxd8 {[%clk 0:01:59]}  Rxd8 {[%clk 0:01:11]} 26. Ra4 {[%clk 0:01:59]}  Qc5 {[%clk 0:01:09]} 27. Rxa5 {[%clk 0:01:51]}  h5 {[%clk 0:01:06]} 28. Bf3 {[%clk 0:01:41]}  Ne6 {[%clk 0:01:06]} 29. Qc4 {[%clk 0:01:30]}  Qb6 {[%clk 0:01:01]} 30. Ra1 {[%clk 0:01:18]}  Rd2 {[%clk 0:01:01]} 31. Rf1 {[%clk 0:01:11]}  h4 {[%clk 0:01:01]} 32. gxh4 {[%clk 0:01:02]}  Nf4 {[%clk 0:01:01]} 33. Qc8+ {[%clk 0:00:55]}  Kh7 {[%clk 0:01:00]} 34. c4 {[%clk 0:00:51]}  Nxh3+ {[%clk 0:00:58]} 35. Qxh3 {[%clk 0:00:50]}  Rd3 {[%clk 0:00:56]} 36. Qg2 {[%clk 0:00:42]}  Rxb3 {[%clk 0:00:51]} 37. Rd1 {[%clk 0:00:35]}  Qc5 {[%clk 0:00:51]} 38. Nd6 {[%clk 0:00:32]}  Qc7 {[%clk 0:00:37]} 39. Nf5 {[%clk 0:00:30]}  g6 {[%clk 0:00:37]} 40. Qg5 {[%clk 0:00:21]}  gxf5 {[%clk 0:00:30]} 41. Qxf6 {[%clk 0:00:20]}  Rxf3 {[%clk 0:00:28]} 42. Rd8 {[%clk 0:00:20]}  Rg3+ {[%clk 0:00:14]} 43. fxg3 {[%clk 0:00:19]}  Qa7+ {[%clk 0:00:14]} 44. Kh2 {[%clk 0:00:18]}  Qf2+ {[%clk 0:00:14]} 45. Kh3 {[%clk 0:00:16]}  Qf1+ {[%clk 0:00:15]} 46. Kh2 {[%clk 0:00:17]}  Qf2+ {[%clk 0:00:15]} 47. Kh1 {[%clk 0:00:17]}  Qf1+ {[%clk 0:00:10]} 48. Kh2 {[%clk 0:00:17]}  Qf2+ {[%clk 0:00:06]} 1/2-1/2


[Site "https://www.chess.com"]

[Event "Titled Tuesday Blitz March 15 Late 2022"]
[White "Matinian, Nikita"]
[Black "Solon, Nathan"]
[WhiteFideId "24129100"]
[BlackFideId "2017229"]
[WhiteElo "2422"]
[BlackElo "2574"]
[Result "0-1"]
[Round "06"]
[TimeControl "180+1"]
[Date "2022.03.15"]
[WhiteClock "0:00:01"]
[BlackClock "0:00:45"]

1. e4 {[%clk 0:02:49]}  d5 {[%clk 0:02:59]} 2. exd5 {[%clk 0:02:49]}  Nf6 {[%clk 0:02:59]} 3. d4 {[%clk 0:02:48]}  Bg4 {[%clk 0:02:59]} 4. f3 {[%clk 0:02:46]}  Bf5 {[%clk 0:02:59]} 5. Bb5+ {[%clk 0:02:45]}  Nbd7 {[%clk 0:02:56]} 6. c4 {[%clk 0:02:44]}  a6 {[%clk 0:02:54]} 7. Ba4 {[%clk 0:02:45]}  b5 {[%clk 0:02:53]} 8. cxb5 {[%clk 0:02:45]}  Nxd5 {[%clk 0:02:52]} 9. Nc3 {[%clk 0:02:41]}  N5b6 {[%clk 0:02:47]} 10. Nge2 {[%clk 0:02:36]}  Nxa4 {[%clk 0:02:45]} 11. Qxa4 {[%clk 0:02:37]}  axb5 {[%clk 0:02:44]} 12. Qxb5 {[%clk 0:02:38]}  e6 {[%clk 0:02:42]} 13. O-O {[%clk 0:02:30]}  Bd6 {[%clk 0:02:42]} 14. Bf4 {[%clk 0:02:28]}  Rb8 {[%clk 0:02:39]} 15. Qa4 {[%clk 0:01:48]}  Rxb2 {[%clk 0:02:34]} 16. Bxd6 {[%clk 0:01:47]}  cxd6 {[%clk 0:02:35]} 17. Qa3 {[%clk 0:01:48]}  Qb8 {[%clk 0:02:24]} 18. Ng3 {[%clk 0:01:41]}  Bg6 {[%clk 0:02:20]} 19. Nce4 {[%clk 0:01:33]}  O-O {[%clk 0:02:15]} 20. Qxd6 {[%clk 0:01:30]}  Qa7 {[%clk 0:02:08]} 21. Nc5 {[%clk 0:01:23]}  Nf6 {[%clk 0:01:59]} 22. a4 {[%clk 0:01:18]}  Nd5 {[%clk 0:01:55]} 23. h4 {[%clk 0:01:11]}  h5 {[%clk 0:01:45]} 24. Rfe1 {[%clk 0:00:59]}  Qa5 {[%clk 0:01:40]} 25. Nge4 {[%clk 0:00:42]}  Rd8 {[%clk 0:01:19]} 26. Qg3 {[%clk 0:00:41]}  Nc3 {[%clk 0:01:14]} 27. Nxc3 {[%clk 0:00:27]}  Qxc3 {[%clk 0:01:14]} 28. Rad1 {[%clk 0:00:08]}  Rxd4 {[%clk 0:01:09]} 29. a5 {[%clk 0:00:03]}  Rxd1 {[%clk 0:01:05]} 30. Rxd1 {[%clk 0:00:03]}  Qxc5+ {[%clk 0:01:05]} 31. Kh2 {[%clk 0:00:03]}  Qxa5 {[%clk 0:01:03]} 32. Qf4 {[%clk 0:00:02]}  Rc2 {[%clk 0:00:53]} 33. Rd7 {[%clk 0:00:01]}  Qf5 {[%clk 0:00:45]} 0-1


[Site "https://www.chess.com"]

[Event "Titled Tuesday Blitz March 15 Late 2022"]
[White "Meduri, Aakaash"]
[Black "Petesch, Gabriel"]
[WhiteFideId "2032252"]
[BlackFideId "2032465"]
[WhiteElo "2096"]
[BlackElo "2374"]
[Result "0-1"]
[Round "06"]
[TimeControl "180+1"]
[Date "2022.03.16"]
[WhiteClock "0:00:01"]
[BlackClock "0:00:16"]

1. e4 {[%clk 0:03:00]}  e5 {[%clk 0:02:58]} 2. Nc3 {[%clk 0:03:00]}  Nc6 {[%clk 0:02:57]} 3. Nf3 {[%clk 0:03:00]}  Nf6 {[%clk 0:02:56]} 4. Nxe5 {[%clk 0:03:00]}  Nxe5 {[%clk 0:02:55]} 5. d4 {[%clk 0:03:01]}  Nc6 {[%clk 0:02:50]} 6. e5 {[%clk 0:03:00]}  Ng8 {[%clk 0:02:49]} 7. f4 {[%clk 0:03:00]}  d6 {[%clk 0:02:43]} 8. d5 {[%clk 0:02:59]}  Nce7 {[%clk 0:02:37]} 9. Bb5+ {[%clk 0:02:51]}  Bd7 {[%clk 0:02:36]} 10. Bc4 {[%clk 0:02:51]}  g6 {[%clk 0:02:29]} 11. e6 {[%clk 0:02:32]}  fxe6 {[%clk 0:02:29]} 12. dxe6 {[%clk 0:02:31]}  Bg7 {[%clk 0:02:16]} 13. exd7+ {[%clk 0:02:30]}  Qxd7 {[%clk 0:02:16]} 14. O-O {[%clk 0:02:22]}  O-O-O {[%clk 0:02:11]} 15. Re1 {[%clk 0:02:01]}  d5 {[%clk 0:02:05]} 16. Bb5 {[%clk 0:02:00]}  Qd6 {[%clk 0:01:59]} 17. Qf3 {[%clk 0:01:34]}  Qb6+ {[%clk 0:01:44]} 18. Be3 {[%clk 0:01:26]}  d4 {[%clk 0:01:41]} 19. Bf2 {[%clk 0:01:26]}  Qa5 {[%clk 0:01:30]} 20. b4 {[%clk 0:01:10]}  Qxb4 {[%clk 0:01:22]} 21. Rab1 {[%clk 0:01:00]}  Qxc3 {[%clk 0:01:20]} 22. Bd7+ {[%clk 0:00:38]}  Kxd7 {[%clk 0:01:15]} 23. Qxb7 {[%clk 0:00:39]}  Qc6 {[%clk 0:01:09]} 24. Qb4 {[%clk 0:00:32]}  Nd5 {[%clk 0:00:57]} 25. Qa5 {[%clk 0:00:25]}  Nge7 {[%clk 0:00:52]} 26. Rbd1 {[%clk 0:00:11]}  Kc8 {[%clk 0:00:37]} 27. Qxa7 {[%clk 0:00:08]}  Qb7 {[%clk 0:00:31]} 28. Qa3 {[%clk 0:00:04]}  Rhe8 {[%clk 0:00:29]} 29. Bxd4 {[%clk 0:00:04]}  Bxd4+ {[%clk 0:00:27]} 30. Rxd4 {[%clk 0:00:05]}  Qb6 {[%clk 0:00:22]} 31. Rd1 {[%clk 0:00:01]}  Nc6 {[%clk 0:00:20]} 32. Qa8+ {[%clk 0:00:01]}  Kd7 {[%clk 0:00:19]} 33. Qa4 {[%clk 0:00:01]}  Re1+ {[%clk 0:00:16]} 34. Kf2 {[%clk 0:00:01]}  Rxd1 {[%clk 0:00:16]} 0-1


[Site "https://www.chess.com"]

[Event "Titled Tuesday Blitz March 15 Late 2022"]
[White "Mickiewicz, Piotr"]
[Black "Clawitter, Craig"]
[WhiteFideId "1114891"]
[BlackFideId "2023105"]
[WhiteElo "2266"]
[BlackElo "2213"]
[Result "0-1"]
[Round "06"]
[TimeControl "180+1"]
[Date "2022.03.16"]
[WhiteClock "0:00:23"]
[BlackClock "0:00:07"]

1. Nf3 {[%clk 0:02:59]}  Nf6 {[%clk 0:02:58]} 2. g3 {[%clk 0:02:57]}  d5 {[%clk 0:02:57]} 3. Bg2 {[%clk 0:02:58]}  e6 {[%clk 0:02:57]} 4. O-O {[%clk 0:02:56]}  Be7 {[%clk 0:02:58]} 5. c4 {[%clk 0:02:55]}  O-O {[%clk 0:02:57]} 6. b3 {[%clk 0:02:47]}  a5 {[%clk 0:02:56]} 7. Bb2 {[%clk 0:02:45]}  a4 {[%clk 0:02:56]} 8. cxd5 {[%clk 0:02:35]}  exd5 {[%clk 0:02:55]} 9. d3 {[%clk 0:02:19]}  axb3 {[%clk 0:02:47]} 10. Qxb3 {[%clk 0:02:16]}  Nbd7 {[%clk 0:02:36]} 11. Nbd2 {[%clk 0:02:09]}  Nc5 {[%clk 0:02:29]} 12. Qc2 {[%clk 0:02:07]}  Na4 {[%clk 0:02:25]} 13. Be5 {[%clk 0:01:54]}  c6 {[%clk 0:02:13]} 14. Rab1 {[%clk 0:01:52]}  Re8 {[%clk 0:02:05]} 15. Ba1 {[%clk 0:01:41]}  Bf8 {[%clk 0:01:42]} 16. Rfe1 {[%clk 0:01:40]}  Nc5 {[%clk 0:01:32]} 17. Ne5 {[%clk 0:01:24]}  Be6 {[%clk 0:01:07]} 18. Ndf3 {[%clk 0:01:18]}  Qa5 {[%clk 0:00:47]} 19. d4 {[%clk 0:01:09]}  Ncd7 {[%clk 0:00:30]} 20. Rxb7 {[%clk 0:01:08]}  Nxe5 {[%clk 0:00:23]} 21. Nxe5 {[%clk 0:01:04]}  Qxe1+ {[%clk 0:00:22]} 22. Bf1 {[%clk 0:01:01]}  Ne4 {[%clk 0:00:19]} 23. Rb1 {[%clk 0:00:59]}  Qxf2+ {[%clk 0:00:18]} 24. Kh1 {[%clk 0:00:58]}  Reb8 {[%clk 0:00:16]} 25. Rd1 {[%clk 0:00:56]}  Qf6 {[%clk 0:00:14]} 26. Rc1 {[%clk 0:00:49]}  g6 {[%clk 0:00:13]} 27. Bg2 {[%clk 0:00:48]}  Bh6 {[%clk 0:00:12]} 28. Rf1 {[%clk 0:00:46]}  Nf2+ {[%clk 0:00:10]} 29. Kg1 {[%clk 0:00:45]}  Be3 {[%clk 0:00:11]} 30. Qc3 {[%clk 0:00:31]}  Nd1+ {[%clk 0:00:07]} 31. Qxe3 {[%clk 0:00:29]}  Qxf1+ {[%clk 0:00:07]} 32. Kxf1 {[%clk 0:00:23]}  Nxe3+ {[%clk 0:00:07]} 33. Kf2 {[%clk 0:00:24]}  Nxg2 {[%clk 0:00:08]} 34. Kxg2 {[%clk 0:00:24]}  Rxa2 {[%clk 0:00:08]} 35. Bc3 {[%clk 0:00:23]}  Rxe2+ {[%clk 0:00:08]} 36. Kf3 {[%clk 0:00:23]}  Rxe5 {[%clk 0:00:08]} 37. dxe5 {[%clk 0:00:22]}  Rb3 {[%clk 0:00:09]} 38. Kf4 {[%clk 0:00:22]}  Rxc3 {[%clk 0:00:09]} 39. h3 {[%clk 0:00:23]}  Rc2 {[%clk 0:00:08]} 40. g4 {[%clk 0:00:22]}  Re2 {[%clk 0:00:09]} 41. h4 {[%clk 0:00:23]}  Re4+ {[%clk 0:00:09]} 42. Kg5 {[%clk 0:00:23]}  Rxg4+ {[%clk 0:00:08]} 43. Kf6 {[%clk 0:00:23]}  Rf4+ {[%clk 0:00:08]} 44. Ke7 {[%clk 0:00:22]}  d4 {[%clk 0:00:08]} 45. h5 {[%clk 0:00:22]}  d3 {[%clk 0:00:08]} 46. h6 {[%clk 0:00:23]}  d2 {[%clk 0:00:08]} 47. Ke8 {[%clk 0:00:23]}  d1=Q {[%clk 0:00:08]} 48. Ke7 {[%clk 0:00:23]}  Qd7# {[%clk 0:00:07]} 0-1


[Site "https://www.chess.com"]